Workbook

Sheet 全市经济
A1: 三、全市主要经济指标 | G1: （二）攀枝花生产总值
A2: （一）综合 | I2: 单位：万元
A3: 指标 | B3: 单位 | C3: 本月止累计 | D3: ±% | E3: 备注 | H3: 上半年 | I3: 累计±%
A4: 一、地区生产总值(GDP) | B4: 亿元 | C4: =H4/10000 -> 501.41 | D4: =I4 -> 0.7 | E4: 上半年 | G4: 地区生产总值 | H4: 5014116 | I4: 0.7
A5: 二、农林牧渔业总产值 | B5: 亿元 | C5: 58.58 | D5: 2.7 | E5: 上半年 | G5: # 第一产业增加值 | H5: 309417 | I5: 3.1
A6: 三、规上工业增加值 | B6: % | C6: - | D6: =B30 -> 2.2 | G6: 第二产业增加值 | H6: 2636185 | I6: 2.3
A7: 四、全社会固定资产投资 | B7: 亿元 | C7: - | D7: =H60 -> 7.8 | G7: 第三产业增加值 | H7: 2068514 | I7: -2.4
A8: 五、社会消费品零售总额 | B8: 亿元 | C8: =B94/10000 -> 142.07 | D8: =C94 -> -6.1 | G8: # 批发和零售业增加值 | H8: 564623 | I8: -10.0
A9: 六、城镇居民人均可支配收入 | B9: 元 | C9: =B150 -> 19594 | D9: =C150 -> 4.2 | E9: 上半年 | G9: 交通运输、仓储和邮政业增加值 | H9: 190398 | I9: 0.4
A10: 七、农村居民人均可支配收入 | B10: 元 | C10: =H150 -> 9471 | D10: =I150 -> 7.2 | E10: 上半年 | G10: 住宿和餐饮业增加值 | H10: 87645 | I10: -18.0
A11: 八、居民消费价格指数 | B11: % | C11: =I120 -> 105.6 | D11: =C11-100 -> 5.6 | G11: 金融业增加值 | H11: 116303 | I11: -2.1
A12: 九、一般公共预算收入 | B12: 亿元 | C12: =H95/10000 -> 41.04 | D12: =I95 -> -5.1 | G12: 房地产业增加值 | H12: 239839 | I12: 2.8
A13: 一般公共预算支出 | B13: 亿元 | C13: =H100/10000 -> 71.37 | D13: =I100 -> -17.0 | G13: 其他服务业增加值 | H13: 861963 | I13: 1.6
A14: 十、税务局组织收入 | B14: 亿元 | C14: =H105/10000 -> 73.50 | D14: =I105 -> -7.1
A15: 其中：税收收入 | B15: 亿元 | C15: =H106/10000 -> 58.69 | D15: =I106 -> -13.5 | G15: 说明：按《国民经济行业分类》（GB/T 4754—2017）和《三次产业划分规定》，第一产业指农、林、牧、渔业（不含农、林、牧、渔专业及辅助性活动）；第二产业指工业（不含开采专业及辅助性活动，金属制品、机械和设备修理业）和建筑业；第三产业即服务业，指除第一产业、第二产业以外的其他行业。
A16: 十一、金融机构人民币存款余额 | B16: 亿元 | C16: =B121/10000 -> 1114.28 | D16: =D121 -> 3.1 | E16: 比年初±%
A17: 金融机构人民币贷款余额 | B17: 亿元 | C17: =B133/10000 -> 790.26 | D17: =D133 -> -4.4 | E17: 比年初±%
A18: 十二、进出口总额 | B18: 亿元 | C18: =B101 -> 19.20 | D18: =C101 -> -9.2
A19: 其中：出口总额 | B19: 亿元 | C19: =B102 -> 7.30 | D19: =C102 -> -16.3
A20: 十三、招商引资当年到位资金 | B20: 亿元 | C20: =B104/10000 -> 530.45 | D20: =C104 -> 1.6
A27: （三）工业 | G27: （三）工业
I28: 单位：万元
B29: 本月止 累计±% | G29: 规模以上工业企业经济效益 | H29: 1-7月止累计 | I29: ±%
A30: 一、规上工业增加值 | B30: 2.2 | G30: 企业单位数（个） | H30: 343
A31: # 轻工业 | B31: 4.8 | G31: 其中：亏损企业 | H31: 61
A32: 重工业 | B32: 2.2 | G32: 亏损面（%） | H32: 17.8 | I32: -1.4
A33: #黑色金属冶炼和压延加工业 | B33: 4.7 | G33: 流动资产合计 | H33: 9322996 | I33: 8.4
A34: 黑色金属矿采选业 | B34: -7.6 | G34: 其中：存货 | H34: 1082342 | I34: 0.7
A35: 化学原料和化学制品制造业 | B35: -3.7 | G35: 资产合计 | H35: 26543734 | I35: 6.7
A36: 煤炭开采和洗选业 | B36: -5.5 | G36: 负债合计 | H36: 16279314 | I36: 1.9
A37: 金属制品业 | B37: -1.6 | G37: 营业收入 | H37: 9997114 | I37: -3.7
A38: 石油、煤炭及其他燃料加工业 | B38: -5.0 | G38: 营业成本 | H38: 8736855 | I38: -2.6
A39: 电力、热力生产和供应业 | B39: -4.0 | G39: 利润总额 | H39: 549370 | I39: -14.8
A40: 有色金属矿采选业 | B40: 27.7
A41: 非金属矿物制品业 | B41: 52.2
A42: 汽车制造业 | B42: 5.1
A43: 二、产销率（%） | B43: 97.2
A57: （四）能源 | G57: （五）投资
C59: 本月止累计 | D59: 累计±% | H59: 本月止 累计±% | I59: 占比%
A60: 一、规上工业综合能源消费量（万吨标准煤） | C60: 545.83 | D60: 0.02 | G60: 一、全社会固定资产投资 | H60: 7.8 | I60: 100
A61: （一）按工业行业分 | G61: # 项目投资 | H61: 8.2 | I61: 82.99
A62: 采矿业 | C62: 91.02 | D62: -3.9 | G62: # 民间投资 | H62: 11.6 | I62: 49.1
A63: 制造业 | C63: 449.96 | D63: 0.7 | G63: (一)按构成分
A64: 电力、热力、燃气及水生产和供应业 | C64: 4.84 | D64: 7.2 | G64: 1.建安工程 | H64: 8.8 | I64: 83.4
A65: （二）高耗能行业 | G65: 2.设备工器具购置 | H65: 8.4 | I65: 12.6
A66: 石油、煤炭及其他燃料加工业 | C66: 41.25 | D66: -1.4 | G66: 3.其他费用 | H66: -10.1 | I66: 4
A67: 化学原料和化学制品制造业 | C67: 44.13 | D67: -19.9 | G67: （二）按结构分
A68: 非金属矿物制品业 | C68: 15.10 | D68: -9.7 | G68: 1.基础设施投资 | H68: 4.3 | I68: 38.3
A69: 黑色金属冶炼和压延加工业 | C69: 319.15 | D69: 4.7 | G69: 2.产业投资 | H69: 20.6 | I69: 33.2
A70: 有色金属冶炼和压延加工业 | C70: 2.57 | D70: 0.0 | G70: 3.民生及社会事业投资 | H70: -17 | I70: 11.3
A71: 电力、热力生产和供应业 | C71: 3.69 | D71: 7.3 | G71: 4.房地产开发 | H71: 10.1 | I71: 14.8
A72: 二、全社会用电量(亿千瓦时) | C72: 91.47 | D72: 0.03 | G72: 5.其他投资 | H72: 66.9 | I72: 2.4
A73: 其中：工业用电量 | C73: 79.87 | D73: -0.3 | G73: (三)按行业分
A74: 三、规上工业新能源产品产量（亿千瓦时） | G74: 1.第一产业 | H74: -34.6 | I74: 3.1
A75: 风力发电量 | C75: 6.80 | D75: -12.5 | G75: 2.第二产业 | H75: 17.5 | I75: 34.4
A76: 太阳能发电量 | C76: 2.27 | D76: -1.1 | G76: # 工业 | H76: 17.6 | I76: 34.2
G77: 3.第三产业 | H77: 6.4 | I77: 62.6
H80: 本月止累计 | I80: 累计±%
G81: 二、商品房开发与销售（万平方米）
G82: (一)房屋施工面积 | H82: 572.58 | I82: -26.5
G83: # 住宅 | H83: 432.79 | I83: -17.6
G84: (二)房屋竣工面积 | H84: 44.27 | I84: 66.8
G85: # 住宅 | H85: 33.93 | I85: 56.9
G86: (三)商品房销售面积(含现房、期房） | H86: 93.92 | I86: 2.2
G87: # 住宅 | H87: 84.03 | I87: 0.8
G88: （四）商品房待售面积 | H88: 63.09 | I88: 32.7
G89: # 住宅 | H89: 20.02 | I89: 109.4
A91: （六）国内外贸易 | G91: （七）财政、税收
C92: 单位：万元 | I92: 单位：万元
B93: 本月止累计 | C93: 累计±% | H93: 本月止累计 | I93: 累计±%
A94: 一、社会消费品零售总额 | B94: 1420748 | C94: -6.1 | G94: 一、地方财政收入
A95: (一)按经营地分 | G95: 1.一般公共预算收入 | H95: 410421 | I95: -5.1
A96: 城镇 | B96: 1290503 | C96: -6.2 | G96: 其中：税收收入 | H96: 280420 | I96: -9.3
A97: 乡村 | B97: 130245 | C97: -4.9 | G97: 非税收入 | H97: 130001 | I97: 5.6
A98: (二)按消费形态分 | G98: 2.政府性基金收入 | H98: 107351 | I98: -44.1
A99: 餐饮收入 | B99: 189255 | C99: -14.6 | G99: 二、地方财政支出
A100: 商品零售 | B100: 1231493 | C100: -4.6 | G100: 1.一般公共预算支出 | H100: 713675 | I100: -17.0
A101: 二、外贸进出口总额（亿元） | B101: 19.20 | C101: -9.2 | G101: 其中：一般公共服务 | H101: 85340 | I101: -31.1
A102: 出口总额 | B102: 7.30 | C102: -16.3 | G102: 教育 | H102: 132681 | I102: -18.8
A103: 进口总额 | B103: 11.90 | C103: -4.3 | G103: 社会保障和就业 | H103: 92514 | I103: 2.7
A104: 三、招商引资当年到位资金额 | B104: 5304542 | C104: 1.6 | G104: 2.政府性基金支出 | H104: 358260 | I104: 1.2
A105: 国内省外到位资金 | B105: 2236379 | C105: 4.2 | G105: 三、税务局组织收入总计 | H105: 734991 | I105: -7.1
A106: 省内到位资金 | B106: 3068163 | C106: -0.3 | G106: # 税收合计 | H106: 586932 | I106: -13.5
A107: 注：根据第四次全国经济普查结果对2019年社会消费品零售总额进行了修订，2020年增速按照可比口径计算。 | G107: # 第三产业 | H107: 243304 | I107: -5.5
G108: # 增值税 | H108: 299435 | I108: -22.9
G109: 消费税 | H109: 10740 | I109: -20.8
G110: 注：在税务局组织收入总计累计数据中，出口退税3111万元，
G111: 其他收入6941万元。
A116: （八）金 融 | G116: （九）城市物价
D117: 单位：万元 | I117: 单位：%
B118: 本月末 | C118: 比年初增减 | G118: 城市物价(上年同期=100) | H118: 当月 | I118: 本月止 累计
C119: 绝对额 | D119: ±%
A120: 一、金融机构本外币各项存款余额 | B120: 11161208 | C120: 335876 | D120: 3.1 | G120: 一、居民消费价格总指数 | H120: 104.0 | I120: 105.6
A121: 金融机构人民币各项存款余额 | B121: 11142814 | C121: 336397 | D121: 3.1 | G121: # 消费品价格指数 | H121: 107.8 | I121: 108.5
A122: 1.住户存款 | B122: 7618145 | C122: 489530 | D122: 6.9 | G122: # 服务价格指数 | H122: 96.8 | I122: 100.1
A123: # 活期存款 | B123: 2458084 | C123: 131127 | D123: 5.6 | G123: 1.食品烟酒 | H123: 118.0 | I123: 118.6
A124: 定期及其他存款 | B124: 5160061 | C124: 358403 | D124: 7.5 | G124: 粮 食 | H124: 99.1 | I124: 99.0
A125: 2.非金融企业存款 | B125: 1662352 | C125: -76758 | D125: -4.4 | G125: 鲜 菜 | H125: 111.7 | I125: 104.3
A126: # 活期存款 | B126: 829494 | C126: -75022 | D126: -8.3 | G126: 畜 肉 | H126: 167.9 | I126: 173.9
A127: 定期及其他存款 | B127: 832858 | C127: -1736 | D127: -0.2 | G127: 水 产 品 | H127: 106.6 | I127: 105.1
A128: 3.广义政府存款 | B128: 1846201 | C128: -90361 | D128: -4.7 | G128: 蛋 | H128: 85.8 | I128: 93.0
A129: 财政性存款 | B129: 151163 | C129: -38817 | D129: -20.4 | G129: 鲜 果 | H129: 81.1 | I129: 91.2
A130: 机关团体存款 | B130: 1695039 | C130: -51543 | D130: -3.0 | G130: 2.衣着 | H130: 98.9 | I130: 99.6
A131: 4.非银行业金融机构存放 | B131: 15314 | C131: 13979 | D131: 1047.0 | G131: 3.居住 | H131: 96.1 | I131: 99.3
A132: 二、金融机构本外币各项贷款余额 | B132: 7917027 | C132: -370942 | D132: -4.5 | G132: 4.生活用品及服务 | H132: 98.3 | I132: 99.4
A133: 金融机构人民币各项贷款余额 | B133: 7902615 | C133: -360716 | D133: -4.4 | G133: 5.交通和通信 | H133: 97.1 | I133: 98.5
A134: 1.住户贷款 | B134: 1312309 | C134: 220659 | D134: 20.2 | G134: 6.教育文化和娱乐 | H134: 96.6 | I134: 100.7
A135: # 短期贷款 | B135: 306719 | C135: 38611 | D135: 14.4 | G135: 7.医疗保健 | H135: 98.4 | I135: 100.1
A136: 中长期贷款 | B136: 1005590 | C136: 182047 | D136: 22.1 | G136: 8.其他用品和服务 | H136: 106.4 | I136: 103.9
A137: 2.非金融企业及机关团体贷款 | B137: 6590305 | C137: -581376 | D137: -8.1 | G137: 二、商品零售价格总指数 | H137: 104.4 | I137: 105.2
A138: # 短期贷款 | B138: 1646399 | C138: -325607 | D138: -16.5
A139: 中长期贷款 | B139: 3524385 | C139: 131738 | D139: 3.9
A140: 票据融资 | B140: 1406622 | C140: -398056 | D140: -22.1
A141: 3.非银行金融机构贷款
A142: 三、金融机构外汇贷款余额（万美元） | B142: 2101 | C142: -1431 | D142: -40.5
A143: 四、个人消费贷款余额 | B143: 727094 | C143: -364556 | D143: -33.4
A144: # 住房消费贷款 | B144: 555988 | C144: 82965 | D144: 17.5
A145: 汽车消费贷款 | B145: 1658 | C145: 199 | D145: 13.6
A146: 五、签发承兑汇票余额 | B146: 539490 | C146: -159189 | D146: -22.8
A147: （十）城镇居民生活 | G147: （十一）农村居民生活
C148: 单位：元 | I148: 单位：元
B149: 上半年 | C149: 累计±% | H149: =B149 -> 上半年 | I149: 累计±%
A150: 一、城镇居民人均可支配收入 | B150: 19594 | C150: 4.2 | G150: 一、农村居民人均可支配收入 | H150: 9471 | I150: 7.2
A151: 其中: 工资性收入 | B151: 12203 | C151: 6.0 | G151: 其中：工资性收入 | H151: 3094 | I151: 6.2
A152: 经营净收入 | B152: 2537 | C152: -14.8 | G152: 经营净收入 | H152: 5681 | I152: 8.2
A153: 财产净收入 | B153: 847 | C153: 6.0 | G153: 财产净收入 | H153: 105 | I153: 5.4
A154: 转移净收入 | B154: 4007 | C154: 13.9 | G154: 转移净收入 | H154: 591 | I154: 3.7
A155: 二、城镇居民人均消费性支出 | B155: 11452 | C155: -5.4 | G155: 二、农村居民人均生活消费支出 | H155: 5771 | I155: -3.5
A156: 其中：食品烟酒 | B156: 4176 | C156: 1.6 | G156: 其中：食品烟酒 | H156: 1794 | I156: 5.4
A157: 衣着 | B157: 794 | C157: -13.1 | G157: 衣着 | H157: 287 | I157: -1.6
A158: 居住 | B158: 1886 | C158: 1.9 | G158: 居住 | H158: 1075 | I158: 5.6
A159: 生活用品及服务 | B159: 774 | C159: -1.5 | G159: 生活用品及服务 | H159: 374 | I159: 2.5
A160: 医疗保健 | B160: 1086 | C160: -6.5 | G160: 交通和通信 | H160: 1127 | I160: -21.4
A161: 交通和通信 | B161: 1537 | C161: -18.0 | G161: 教育、文化和娱乐 | H161: 425 | I161: -5.4
A162: 教育、文化和娱乐 | B162: 955 | C162: -13.9 | G162: 医疗保健 | H162: 606 | I162: -5.0
A163: 其他用品及服务 | B163: 244 | C163: -20.1 | G163: 其他用品及服务 | H163: 83 | I163: 1.3

Sheet Sheet1
